fUST/lending_fUST_20240119
["ID","MTS","AMOUNT","RATE_DAILY","PERIOD"]
[312106291,1705630246194,-500.0,0.0003315,3]
[312106293,1705630246205,-154.6292445,0.00033178,2]
[312106295,1705630246217,-199.0432224,0.00033178,2]
[312106298,1705630246229,-199.0432224,0.00033178,2]
[312106300,1705630246242,-199.0432224,0.00033178,2]
[312106302,1705630246254,-199.0432224,0.00033178,2]
[312106303,1705630246265,-199.0432224,0.00033178,2]
[312106304,1705630246276,-202.4792086,0.00033178,2]
[312106306,1705630246287,-210.91356587,0.00033187,2]
[312106308,1705630246298,-155.0,0.00033246,2]
[312106311,1705630246311,-500.0,0.00033423,3]
[312106313,1705630246322,-500.0,0.00033423,3]
[312106315,1705630246333,-500.0,0.00033423,3]
[312106317,1705630246345,-900.93,0.00033423,3]
[312106320,1705630246356,-900.93,0.00033423,3]
[312106322,1705630246369,-500.0,0.00033424,3]
[312106324,1705630246381,-236.58355663,0.00033424,3]
[312106326,1705630246393,-497.10053071,0.00033424,3]
[312106329,1705630246404,-498.16668187,0.00033424,3]
[312106331,1705630246415,-497.7367725,0.00033424,3]
[312106333,1705630246426,-501.00583222,0.00033424,3]
[312106335,1705630246438,-500.0,0.00033424,3]
[312106337,1705630246450,-500.0,0.00033424,3]
[312106338,1705630246461,-537.49,0.00033424,3]
[312106340,1705630246473,-500.0,0.00033424,3]
[312106342,1705630246484,-500.0,0.00033424,3]
[312106344,1705630246498,-854.95,0.00033424,3]
[312106347,1705630246510,-500.0,0.00033424,3]
[312106349,1705630246522,-503.94559309,0.00033424,3]
[312106351,1705630246533,-454.99446955,0.00033424,3]
[312106353,1705630246545,-500.0,0.00033424,3]
[312106355,1705630246557,-500.0,0.00033424,3]
[312106357,1705630246569,-505.02654422,0.00033424,3]
[312106359,1705630246581,-500.0,0.00033424,3]
[312106361,1705630246593,-500.0,0.00033424,3]
[312106362,1705630246604,-500.0,0.00033424,3]
[312106363,1705630246616,-1002.73,0.00033424,3]
[312106364,1705630246628,-528.86,0.00033424,3]
[312106365,1705630246640,-620.72,0.00033424,3]
[312106366,1705630246655,-1240.85,0.00033424,3]
[312106367,1705630246666,-500.0,0.00033424,3]
[312106368,1705630246678,-532.95,0.00033424,3]
[312106369,1705630246690,-503.5224541,0.00033424,3]
[312106370,1705630246794,-500.0,0.00033424,3]
[312106371,1705630246803,-2493.26,0.00033424,3]
[312106372,1705630246813,-500.0,0.00033424,3]
[312106373,1705630246822,-600.2,0.00033424,3]
[312106374,1705630246831,-504.68063983,0.00033424,3]
[312106375,1705630246841,-583.97798925,0.00033424,3]
[312106376,1705630246851,-602.54,0.00033424,3]
[312106377,1705630246861,-503.50962741,0.00033424,3]
[312106378,1705630246871,-500.0,0.00033424,14]
[312106379,1705630246880,-500.0,0.00033424,3]
[312106380,1705630246890,-540.53,0.00033424,3]
[312106381,1705630246898,-500.0,0.00033424,3]
[312106382,1705630246908,-975.55,0.00033424,3]
[312106383,1705630246917,-500.0,0.00033424,3]
[312106384,1705630246926,-1628.83,0.00033424,3]
[312106385,1705630246935,-1875.28,0.00033424,3]
[312106386,1705630246944,-500.0,0.00033424,3]
[312106387,1705630246953,-503.81106822,0.00033424,3]
[312106388,1705630246962,-356.98673676,0.00033424,3]
[312106389,1705630246972,-554.19,0.00033424,3]
[312106390,1705630246980,-500.0,0.00033424,3]
[312106391,1705630246989,-500.0,0.00033424,3]
[312106392,1705630246998,-500.0,0.00033424,3]
[312106393,1705630247007,-500.0,0.00033424,3]
[312106394,1705630247017,-498.01649324,0.00033424,3]
[312106395,1705630247026,-511.97822504,0.00033424,3]
[312106396,1705630247035,-588.12453349,0.00033424,3]
[312106397,1705630247045,-500.0,0.00033424,3]
[312106398,1705630247054,-500.0,0.00033424,3]
[312106399,1705630247064,-618.85,0.00033424,3]
[312106400,1705630247073,-500.0,0.00033424,3]
[312106401,1705630247083,-707.09,0.00033424,3]
[312106402,1705630247092,-1096.83,0.00033424,3]
[312106403,1705630247101,-1452.86,0.00033424,3]
[312106404,1705630247110,-1634.22,0.00033424,3]
[312106405,1705630247119,-8867.42,0.00033424,3]
[312106406,1705630247128,-500.0,0.00033424,3]
[312106407,1705630247137,-500.0,0.00033424,3]
[312106408,1705630247146,-1388.87,0.00033424,3]
[312106409,1705630247155,-750.83,0.00033424,3]
[312106410,1705630247164,-13711.72,0.00033424,3]
[312106411,1705630247173,-490.0,0.00033424,3]
[312106412,1705630247184,-391.31701219,0.00033424,3]
[312106413,1705630247193,-503.85132487,0.00033424,3]
[312106414,1705630247201,-500.0,0.00033424,3]
[312106415,1705630247210,-500.0,0.00033424,3]
[312106416,1705630247219,-500.0,0.00033424,3]
[312106417,1705630247229,-2926.93,0.00033424,3]
[312106418,1705630247238,-872.03,0.00033424,3]
[312106419,1705630247248,-510.49124954,0.00033424,3]
[312106420,1705630247259,-150.0,0.00033424,3]
[312106421,1705630247268,-500.0,0.00033424,3]
[312106422,1705630247278,-3844.51,0.00033424,3]
[312106423,1705630247288,-500.0,0.00033424,3]
[312106424,1705630247298,-637.62,0.00033424,3]
[312106425,1705630247308,-3594.7,0.00033424,3]
[312106426,1705630247320,-1827.79,0.00033424,3]
[312106427,1705630247329,-500.0,0.00033424,3]
[312106428,1705630247339,-500.0,0.00033424,2]
[312106429,1705630247348,-1139.26,0.00033424,3]
[312106430,1705630247356,-518.51183488,0.00033424,3]
[312106431,1705630247366,-66.97051211,0.00033424,3]
[312106432,1705630247453,-433.02948789,0.00033424,3]
[312106433,1705630247463,-500.0,0.00033424,3]
[312106434,1705630247471,-312.8234048,0.00033424,3]
[312106435,1705630247480,-1875.08,0.00033424,3]
[312106436,1705630247490,-1611.070596,0.00033424,2]
[312106437,1705630247499,-1611.070596,0.00033424,2]
[312106438,1705630247508,-3656.988551,0.00033424,2]
[312106439,1705630247518,-3656.988551,0.00033424,2]
[312106440,1705630247527,-151.096318,0.00033424,2]
[312106441,1705630247536,-154.9235729,0.00033452,2]
[312106442,1705630247545,-210.91356587,0.00033598,2]
[312106443,1705630247554,-168.733565,0.00033671,2]
[312106444,1705630247563,-500.0,0.00033697,3]
[312106445,1705630247572,-500.0,0.00033697,3]
[312106446,1705630247581,-900.93,0.00033697,3]
[312106447,1705630247591,-500.0,0.00033698,3]
[312106448,1705630247599,-500.0,0.00033698,3]
[312106449,1705630247608,-500.0,0.00033698,3]
[312106450,1705630247617,-537.49,0.00033698,3]
[312106451,1705630247627,-500.0,0.00033698,3]
[312106452,1705630247639,-854.95,0.00033698,3]
[312106453,1705630247649,-500.0,0.00033698,3]
[312106454,1705630247658,-496.1580471,0.00033698,3]
[312106455,1705630247667,-500.0,0.00033698,3]
[312106456,1705630247677,-500.0,0.00033698,3]
[312106457,1705630247687,-1002.73,0.00033698,3]
[312106458,1705630247697,-528.86,0.00033698,3]
[312106459,1705630247706,-1240.85,0.00033698,3]
[312106460,1705630247716,-500.0,0.00033698,3]
[312106461,1705630247726,-532.95,0.00033698,3]
[312106462,1705630247735,-500.0,0.00033698,3]
[312106463,1705630247744,-2493.26,0.00033698,3]
[312106464,1705630247754,-500.0,0.00033698,3]
[312106465,1705630247763,-600.2,0.00033698,3]
[312106466,1705630247773,-500.0,0.00033698,14]
[312106467,1705630247784,-500.0,0.00033698,3]
[312106468,1705630247793,-540.53,0.00033698,3]
[312106469,1705630247803,-500.0,0.00033698,3]
[312106470,1705630247812,-975.55,0.00033698,3]
[312106471,1705630247823,-1628.83,0.00033698,3]
[312106472,1705630247833,-1875.28,0.00033698,3]
[312106473,1705630247842,-169.24215373,0.00033698,3]
[312106474,1705630247851,-554.19,0.00033698,3]
[312106475,1705630247863,-500.0,0.00033698,3]
[312106476,1705630247873,-500.0,0.00033698,3]
[312106477,1705630247882,-525.71284778,0.00033698,3]
[312106478,1705630247891,-500.0,0.00033698,3]
[312106479,1705630247900,-500.0,0.00033698,3]
[312106480,1705630247910,-618.85,0.00033698,3]
[312106481,1705630247919,-500.0,0.00033698,3]
[312106482,1705630247928,-707.09,0.00033698,3]
[312106483,1705630247937,-1096.83,0.00033698,3]
[312106484,1705630247946,-1452.86,0.00033698,3]
[312106485,1705630247955,-1634.22,0.00033698,3]
[312106486,1705630247964,-8867.42,0.00033698,3]
[312106487,1705630247974,-500.0,0.00033698,3]
[312106488,1705630247983,-1388.87,0.00033698,3]
[312106489,1705630247993,-750.83,0.00033698,3]
[312106490,1705630248002,-12694.05878092,0.00033698,3]
[312106491,1705630248015,-1017.66121908,0.00033698,3]
[312106492,1705630248025,-500.0,0.00033698,3]
[312106493,1705630248034,-500.0,0.00033698,3]
[312106494,1705630248043,-2926.93,0.00033698,3]
[312106495,1705630248052,-872.03,0.00033698,3]
[312106496,1705630248061,-150.0,0.00033698,3]
[312106497,1705630248070,-500.0,0.00033698,3]
[312106498,1705630248081,-3844.51,0.00033698,3]
[312106499,1705630248091,-500.0,0.00033698,3]
[312106500,1705630248102,-637.62,0.00033698,3]
[312106501,1705630248111,-3594.7,0.00033698,3]
[312106502,1705630248122,-1827.79,0.00033698,3]
[312106503,1705630248131,-500.0,0.00033698,3]
[312106504,1705630248142,-1139.26,0.00033698,3]
[312106505,1705630248152,-500.0,0.00033698,3]
[312106506,1705630248161,-1875.08,0.00033698,3]
[312106507,1705630248170,-3656.988551,0.00033698,2]
[312106508,1705630248179,-3656.988551,0.00033698,2]
[312106509,1705630248189,-500.0,0.00033971,3]
[312106510,1705630248199,-507.90230935,0.00033971,3]
[312106511,1705630248208,-900.93,0.00033971,3]
[312106512,1705630248218,-471.80074318,0.00033971,2]
[312106513,1705630248228,-648.39145982,0.00033971,4]
[312106514,1705630248237,-435.22921811,0.00033971,4]
[312106515,1705630248247,-500.0,0.00033971,4]
[312106516,1705630248256,-296.8498459,0.00033971,4]
[312106517,1705630248265,-500.0,0.00033971,4]
[312106518,1705630248274,-500.0,0.00033971,4]
[312106519,1705630248284,-500.0,0.00033971,4]
[312106520,1705630248293,-500.0,0.00033971,4]
[312106521,1705630248303,-500.0,0.00033971,4]
[312106522,1705630248312,-500.0,0.00033971,4]
[312106523,1705630248321,-365.66710688,0.00033971,4]
[312106524,1705630248332,-195.94418964,0.00033971,4]
[312106525,1705630248341,-500.0,0.00033971,4]
[312106526,1705630248350,-371.04344125,0.00033971,4]
[312106527,1705630248361,-500.0,0.00033971,4]
[312106528,1705630248371,-500.0,0.00033971,4]
[312106529,1705630248381,-500.0,0.00033971,4]
[312106530,1705630248391,-500.0,0.00033971,4]
[312106531,1705630248403,-500.0,0.00033971,4]
[312106532,1705630248413,-500.0,0.00033971,4]
[312106533,1705630248424,-500.0,0.00033971,4]
[312106534,1705630248505,-500.0,0.00033971,4]
[312106535,1705630248515,-500.0,0.00033971,4]
[312106536,1705630248525,-500.0,0.00033971,4]
[312106537,1705630248535,-500.0,0.00033971,7]
[312106538,1705630248544,-500.0,0.00033971,7]
[312106539,1705630248553,-500.0,0.00033971,7]
[312106540,1705630248563,-500.0,0.00033971,7]
[312106541,1705630248574,-421.23988702,0.00033971,7]
[312106542,1705630248583,-254.73131809,0.00033971,7]
[312106543,1705630248595,-500.0,0.00033971,7]
[312106544,1705630248605,-500.0,0.00033971,7]
[312106545,1705630248614,-500.0,0.00033971,7]
[312106546,1705630248623,-335.85720417,0.00033971,7]
[312106547,1705630248633,-212.61668376,0.00033971,7]
[312106548,1705630248642,-500.0,0.00033971,7]
[312106549,1705630248652,-500.0,0.00033971,7]
[312106550,1705630248662,-500.0,0.00033971,7]
[312106551,1705630248671,-500.0,0.00033971,7]
[312106552,1705630248681,-500.0,0.00033971,7]
[312106553,1705630248692,-500.0,0.00033971,7]
[312106554,1705630248701,-500.0,0.00033971,7]
[312106555,1705630248710,-500.0,0.00033971,7]
[312106556,1705630248719,-385.92063644,0.00033971,7]
[312106557,1705630248728,-500.0,0.00033971,7]
[312106558,1705630248737,-313.84854838,0.00033971,7]
[312106559,1705630248747,-610.98010437,0.00033971,7]
[312106560,1705630248756,-500.0,0.00033971,7]
[312106561,1705630248766,-500.0,0.00033971,7]
[312106562,1705630248775,-500.0,0.00033972,3]
[312106563,1705630248793,-500.0,0.00033972,3]
[312106564,1705630248805,-500.0,0.00033972,3]
[312106565,1705630248815,-537.49,0.00033972,3]
[312106566,1705630248824,-500.0,0.00033972,3]
[312106567,1705630248833,-854.95,0.00033972,3]
[312106568,1705630248843,-500.0,0.00033972,3]
[312106569,1705630248853,-500.0,0.00033972,3]
[312106570,1705630248862,-500.0,0.00033972,3]
[312106571,1705630248871,-1002.73,0.00033972,3]
[312106572,1705630248881,-528.86,0.00033972,3]
[312106573,1705630248891,-1240.85,0.00033972,3]
[312106574,1705630248901,-500.0,0.00033972,3]
[312106575,1705630248911,-532.95,0.00033972,3]
[312106576,1705630248920,-500.0,0.00033972,3]
[312106577,1705630248930,-2493.26,0.00033972,3]
[312106578,1705630248940,-503.65248224,0.00033972,3]
[312106579,1705630248950,-600.2,0.00033972,3]
[312106580,1705630248959,-500.0,0.00033972,14]
[312106581,1705630248968,-500.0,0.00033972,3]
[312106582,1705630248978,-540.53,0.00033972,3]
[312106583,1705630248988,-500.0,0.00033972,3]
[312106584,1705630248997,-975.55,0.00033972,3]
[312106585,1705630249007,-1628.83,0.00033972,3]
[312106586,1705630249017,-1875.28,0.00033972,3]
[312106587,1705630249026,-554.19,0.00033972,3]
[312106588,1705630249035,-500.0,0.00033972,3]
[312106589,1705630249044,-500.0,0.00033972,3]
[312106590,1705630249053,-500.0,0.00033972,3]
[312106591,1705630249062,-500.0,0.00033972,3]
[312106592,1705630249071,-618.85,0.00033972,3]
[312106593,1705630249080,-500.0,0.00033972,3]
[312106594,1705630249089,-707.09,0.00033972,3]
[312106595,1705630249098,-1096.83,0.00033972,3]
[312106596,1705630249107,-1452.86,0.00033972,3]
[312106597,1705630249116,-1634.22,0.00033972,3]
[312106598,1705630249125,-8867.42,0.00033972,3]
[312106599,1705630249139,-500.0,0.00033972,3]
[312106600,1705630249154,-1388.87,0.00033972,3]
[312106601,1705630249169,-750.83,0.00033972,3]
[312106602,1705630249178,-13711.72,0.00033972,3]
[312106603,1705630249188,-500.0,0.00033972,3]
[312106604,1705630249197,-500.0,0.00033972,3]
[312106605,1705630249206,-2926.93,0.00033972,3]
[312106606,1705630249215,-872.03,0.00033972,3]
[312106607,1705630249224,-150.0,0.00033972,3]
[312106608,1705630249233,-500.0,0.00033972,3]
[312106609,1705630249242,-3844.51,0.00033972,3]
[312106610,1705630249251,-500.0,0.00033972,3]
[312106611,1705630249260,-637.62,0.00033972,3]
[312106612,1705630249269,-3594.7,0.00033972,3]
[312106613,1705630249278,-1827.79,0.00033972,3]
[312106614,1705630249287,-500.0,0.00033972,3]
[312106615,1705630249296,-1139.26,0.00033972,3]
[312106616,1705630249305,-1875.08,0.00033972,3]
[312106617,1705630249314,-1611.070596,0.00033972,2]
[312106618,1705630249323,-1611.070596,0.00033972,2]
[312106619,1705630249332,-3656.988551,0.00033972,2]
[312106620,1705630249341,-3656.988551,0.00033972,2]
[312106621,1705630249350,-5735.65596699,0.00034,2]
[312106622,1705630249359,-1611.070596,0.00034,2]
[312106623,1705630249368,-1611.070596,0.00034,2]
[312106624,1705630249377,-6118.92990506,0.00034005,2]
[312106625,1705630249387,-210.91356587,0.00034009,2]
[312106626,1705630249395,-500.0,0.00034098,3]
[312106627,1705630249404,-900.93,0.00034098,3]
[312106628,1705630249413,-900.93,0.00034098,3]
[312106629,1705630249423,-500.0,0.00034099,3]
[312106630,1705630249432,-500.0,0.00034099,3]
[312106631,1705630249441,-500.0,0.00034099,3]
[312106632,1705630249450,-500.64107435,0.00034099,3]
[312106633,1705630249459,-501.87839877,0.00034099,3]
[312106634,1705630249468,-500.0,0.00034099,3]
[312106635,1705630249477,-500.0,0.00034099,3]
[312106636,1705630249486,-501.33363591,0.00034099,3]
[312106637,1705630249495,-500.0,0.00034099,3]
[312106638,1705630249504,-900.93,0.000341,3]
[312106639,1705630249513,-151.0,0.00034106,2]
[312106640,1705630249522,-346.51225944,0.00034245,3]
[312106641,1705630249531,-900.93,0.00034245,3]
[312106642,1705630249540,-500.0,0.00034246,3]
[312106643,1705630249549,-500.0,0.00034246,3]
[312106644,1705630249558,-500.0,0.00034246,3]
[312106645,1705630249567,-537.49,0.00034246,3]
[312106646,1705630249576,-500.0,0.00034246,3]
[312106647,1705630249584,-854.95,0.00034246,3]
[312106648,1705630249593,-500.0,0.00034246,3]
[312106649,1705630249602,-500.0,0.00034246,3]
[312106650,1705630249611,-500.0,0.00034246,3]
[312106651,1705630249620,-1002.73,0.00034246,3]
[312106652,1705630249630,-528.86,0.00034246,3]
[312106653,1705630249639,-1240.85,0.00034246,3]
[312106654,1705630249647,-500.0,0.00034246,3]
[312106655,1705630249656,-532.95,0.00034246,3]
[312106656,1705630249666,-500.0,0.00034246,3]
[312106657,1705630249675,-2493.26,0.00034246,3]
[312106658,1705630249684,-600.2,0.00034246,3]
[312106659,1705630249694,-500.0,0.00034246,14]
[312106660,1705630249703,-500.0,0.00034246,3]
[312106661,1705630249712,-540.53,0.00034246,3]
[312106662,1705630249721,-500.0,0.00034246,3]
[312106663,1705630249731,-975.55,0.00034246,3]
[312106664,1705630249740,-1628.83,0.00034246,3]
[312106665,1705630249749,-1875.28,0.00034246,3]
[312106666,1705630249758,-554.19,0.00034246,3]
[312106667,1705630249767,-547.77400878,0.00034246,3]
[312106668,1705630249777,-500.0,0.00034246,3]
[312106669,1705630249789,-500.0,0.00034246,3]
[312106670,1705630249798,-500.0,0.00034246,3]
[312106671,1705630249807,-618.85,0.00034246,3]
[312106672,1705630249816,-500.0,0.00034246,3]
[312106673,1705630249826,-707.09,0.00034246,3]
[312106674,1705630249835,-1096.83,0.00034246,3]
[312106675,1705630249844,-1452.86,0.00034246,3]
[312106676,1705630249852,-1634.22,0.00034246,3]
[312106677,1705630249863,-8867.42,0.00034246,3]
[312106678,1705630249872,-500.0,0.00034246,3]
[312106679,1705630249882,-1388.87,0.00034246,3]
[312106680,1705630249891,-750.83,0.00034246,3]
[312106681,1705630249900,-13711.72,0.00034246,3]
[312106682,1705630249909,-246.90876493,0.00034246,3]
[312106683,1705630249919,-500.0,0.00034246,3]
[312106684,1705630249929,-2926.93,0.00034246,3]
[312106685,1705630249939,-872.03,0.00034246,3]
[312106686,1705630249948,-223.89345799,0.00034246,3]
[312106687,1705630249957,-500.0,0.00034246,3]
[312106688,1705630249966,-3844.51,0.00034246,3]
[312106689,1705630249975,-500.0,0.00034246,3]
[312106690,1705630249984,-637.62,0.00034246,3]
[312106691,1705630249994,-3594.7,0.00034246,3]
[312106692,1705630250002,-1827.79,0.00034246,3]
[312106693,1705630250012,-500.0,0.00034246,3]
[312106694,1705630250021,-1139.26,0.00034246,3]
[312106695,1705630250030,-1875.08,0.00034246,3]
[312106696,1705630250039,-1611.070596,0.00034246,2]
[312106697,1705630250048,-1611.070596,0.00034246,2]
[312106698,1705630250057,-3656.988551,0.00034246,2]
[312106699,1705630250067,-3656.988551,0.00034246,2]
[312106700,1705630250142,-7073.92962317,0.00034361,4]
[312106701,1705630250152,-8380.05,0.00034364,2]
[312106702,1705630250161,-499.67406149,0.00034365,3]
[312106703,1705630250171,-900.93,0.00034372,3]
[312106704,1705630250180,-505.48038323,0.00034373,3]
[312106705,1705630250190,-500.0,0.00034373,3]
[312106706,1705630250200,-172.40144117,0.00034373,3]
[312106707,1705630250209,-151.0,0.00034375,2]
[312106708,1705630250219,-1226.45124053,0.00034404,4]
[312106709,1705630250228,-210.91356587,0.0003442,2]
[312106710,1705630250237,-1640.84268936,0.00034427,4]
[312106711,1705630250247,-32222.84942677,0.00034438,5]
[312106712,1705630250256,-900.93,0.00034499,3]
[312106713,1705630250265,-10852.60167949,0.000345,7]
[312106714,1705630250274,-900.93,0.00034519,3]
[312106715,1705630250284,-252.21848505,0.00034519,7]
[312106716,1705630250293,-500.0,0.00034519,7]
[312106717,1705630250302,-486.29359486,0.00034519,7]
[312106718,1705630250312,-186.52680776,0.00034519,7]
[312106719,1705630250322,-500.0,0.00034519,7]
[312106720,1705630250332,-500.0,0.00034519,7]
[312106721,1705630250342,-500.0,0.00034519,7]
[312106722,1705630250352,-500.0,0.00034519,7]
[312106723,1705630250362,-500.0,0.00034519,7]
[312106724,1705630250372,-500.0,0.00034519,7]
[312106725,1705630250382,-500.0,0.00034519,7]
[312106726,1705630250392,-396.95814223,0.00034519,7]
[312106727,1705630250402,-649.25033016,0.00034519,7]
[312106728,1705630250411,-500.0,0.00034519,7]
[312106729,1705630250422,-500.0,0.00034519,7]
[312106730,1705630250431,-403.28258094,0.00034519,7]
[312106731,1705630250443,-500.0,0.00034519,7]
[312106732,1705630250453,-500.0,0.00034519,7]
[312106733,1705630250463,-2000.0,0.0003452,2]
[312106734,1705630250472,-500.0,0.0003452,3]
[312106735,1705630250482,-500.0,0.0003452,3]
[312106736,1705630250493,-500.0,0.0003452,3]
[312106737,1705630250503,-537.49,0.0003452,3]
[312106738,1705630250513,-500.0,0.0003452,3]
[312106739,1705630250523,-854.95,0.0003452,3]
[312106740,1705630250533,-500.0,0.0003452,3]
[312106741,1705630250543,-500.0,0.0003452,3]
[312106742,1705630250553,-500.0,0.0003452,3]
[312106743,1705630250563,-1002.73,0.0003452,3]
[312106744,1705630250573,-528.86,0.0003452,3]
[312106745,1705630250583,-1611.070596,0.0003452,2]
[312106746,1705630250592,-1611.070596,0.0003452,2]
[312106747,1705630250601,-1240.85,0.0003452,3]
[312106748,1705630250610,-500.0,0.0003452,3]
[312106749,1705630250620,-532.95,0.0003452,3]
[312106750,1705630250629,-500.0,0.0003452,3]
[312106751,1705630250638,-2493.26,0.0003452,3]
[312106752,1705630250648,-600.2,0.0003452,3]
[312106753,1705630250657,-3656.988551,0.0003452,2]
[312106754,1705630250667,-3656.988551,0.0003452,2]
[312106755,1705630250676,-500.0,0.0003452,14]
[312106756,1705630250686,-500.0,0.0003452,3]
[312106757,1705630250700,-540.53,0.0003452,3]
[312106758,1705630250709,-500.0,0.0003452,3]
[312106759,1705630250719,-975.55,0.0003452,3]
[312106760,1705630250728,-1628.83,0.0003452,3]
[312106761,1705630250738,-1875.28,0.0003452,3]
[312106762,1705630250747,-554.19,0.0003452,3]
[312106763,1705630250756,-500.0,0.0003452,3]
[312106764,1705630250766,-500.0,0.0003452,3]
[312106765,1705630250776,-585.56028769,0.0003452,3]
[312106766,1705630250786,-618.85,0.0003452,3]
[312106767,1705630250795,-500.0,0.0003452,3]
[312106768,1705630250805,-707.09,0.0003452,3]
[312106769,1705630250815,-1096.83,0.0003452,3]
[312106770,1705630250824,-1452.86,0.0003452,3]
[312106771,1705630250833,-1634.22,0.0003452,3]
[312106772,1705630250843,-8867.42,0.0003452,3]
[312106773,1705630250853,-500.0,0.0003452,3]
[312106774,1705630250863,-1388.87,0.0003452,3]
[312106775,1705630250873,-750.83,0.0003452,3]
[312106776,1705630250882,-13711.72,0.0003452,3]
[312106777,1705630250891,-500.0,0.0003452,3]
[312106778,1705630250900,-2926.93,0.0003452,3]
[312106779,1705630250909,-872.03,0.0003452,3]
[312106780,1705630250918,-500.0,0.0003452,3]
[312106781,1705630250927,-3844.51,0.0003452,3]
[312106782,1705630250937,-500.0,0.0003452,3]
[312106783,1705630250948,-637.62,0.0003452,3]
[312106784,1705630250957,-3594.7,0.0003452,3]
[312106785,1705630250967,-1827.79,0.0003452,3]
[312106786,1705630250977,-500.0,0.0003452,3]
[312106787,1705630250986,-1139.26,0.0003452,3]
[312106788,1705630250997,-1875.08,0.0003452,3]
[312106789,1705630251006,-162.19166883,0.00034616,2]
[312106790,1705630251015,-900.93,0.00034646,3]
[312106791,1705630251024,-372.89283822,0.00034791,2]
[312106792,1705630251033,-691.33211636,0.00034792,4]
[312106793,1705630251043,-3127.11427386,0.00034792,4]
[312106794,1705630251052,-175.60765933,0.00034792,4]
[312106795,1705630251062,-1699.8929605,0.00034792,4]
[312106796,1705630251071,-473.56684214,0.00034792,2]
[312106797,1705630251080,-287.07980723,0.00034792,4]
[312106798,1705630251089,-266.14257998,0.00034792,4]
[312106799,1705630251099,-900.93,0.00034793,3]
[312106800,1705630251108,-151.0,0.00034794,2]
[312106801,1705630251117,-1611.070596,0.00034794,2]
[312106802,1705630251126,-1611.070596,0.00034794,2]
[312106803,1705630251135,-3656.988551,0.00034794,2]
[312106804,1705630251144,-3656.988551,0.00034794,2]
[312106805,1705630251153,-500.0,0.00034794,3]
[312106806,1705630251162,-500.0,0.00034794,3]
[312106807,1705630251171,-500.0,0.00034794,3]
[312106808,1705630251180,-537.49,0.00034794,3]
[312106809,1705630251191,-500.0,0.00034794,3]
[312106810,1705630251200,-854.95,0.00034794,3]
[312106811,1705630251210,-500.0,0.00034794,3]
[312106812,1705630251220,-500.0,0.00034794,3]
[312106813,1705630251229,-500.0,0.00034794,3]
[312106814,1705630251238,-1002.73,0.00034794,3]
[312106815,1705630251248,-528.86,0.00034794,3]
[312106816,1705630251257,-1240.85,0.00034794,3]
[312106817,1705630251267,-500.0,0.00034794,3]
[312106818,1705630251276,-532.95,0.00034794,3]
[312106819,1705630251285,-500.0,0.00034794,3]
[312106820,1705630251294,-2493.26,0.00034794,3]
[312106821,1705630251303,-600.2,0.00034794,3]
[312106822,1705630251312,-500.0,0.00034794,14]
[312106823,1705630251321,-500.0,0.00034794,3]
[312106824,1705630251331,-540.53,0.00034794,3]
[312106825,1705630251340,-500.0,0.00034794,3]
[312106826,1705630251349,-975.55,0.00034794,3]